bitfinex/quotes_ETHUSD_20240709
["timestamp","ask_amount","ask_price","bid_price","bid_amount"]
[1720549540128,0.1041287,3071.1,3071.0,6.51252]
[1720549541266,0.1041287,3071.1,3071.0,12.693232]
[1720549541422,0.1041287,3071.4,3071.3,9.76785]
[1720549543843,4.66560514,3071.5,3071.4,6.51168]
[1720549544028,0.1041287,3071.7,3071.6,3.25563]
[1720549544240,0.1041287,3071.7,3071.6,12.13479399]
[1720549544533,16.86560514,3072.0,3071.9,9.76593]
[1720549544742,0.1041287,3072.1,3072.0,9.7656]
[1720549546153,0.1041287,3072.1,3072.0,6.5104]
[1720549547071,1.02337662,3072.4,3071.4,3.729]
[1720549547072,0.1041287,3071.9,3071.8,6.51082]
[1720549547437,0.1041287,3071.7,3071.6,3.25556]
[1720549548572,0.1041287,3071.7,3071.5,3.25567]
[1720549549139,0.1041287,3071.5,3071.4,3.25584]
[1720549550361,1.23200574,3071.5,3071.4,3.25584]
[1720549550676,0.1041287,3071.5,3071.4,3.25584]
[1720549551061,0.1041287,3071.1,3071.0,3.2562]
[1720549551981,0.1041287,3071.1,3071.0,6.51246]
[1720549554154,0.1041287,3071.1,3071.0,7.443406]
[1720549556404,0.1041287,3071.1,3071.0,6.51246]
[1720549560718,0.1041287,3071.1,3070.9,3.25637]
[1720549561006,5.68863177,3071.5,3070.8,6.51289]
[1720549561007,0.1041287,3070.9,3070.8,6.51289]
[1720549563283,0.1041287,3070.9,3070.8,12.56637]
[1720549563497,0.1041287,3070.9,3070.8,9.30989]
[1720549564978,1.02367256,3071.4,3071.3,3.25595]
[1720549565274,0.1041287,3071.3,3071.2,2.797]
[1720549565480,3.6768741,3071.3,3071.1,3.25607]
[1720549565679,1.12780126,3071.3,3071.1,3.25607]
[1720549565876,1.12780126,3071.3,3070.9,6.51261]
[1720549566219,0.1041287,3071.0,3070.8,3.25647]
[1720549567316,3.57306685,3070.9,3070.7,3.25657]
[1720549567476,1.52544775,3070.8,3070.7,3.25657]
[1720549567679,1.42131905,3070.8,3070.7,3.25657]
[1720549567979,2.44499161,3070.8,3070.7,3.25657]
[1720549568179,2.44499161,3070.8,3070.5,3.25669]
[1720549568380,1.02367256,3070.8,3070.5,3.25669]
[1720549568691,0.1041287,3070.6,3070.5,3.25669]
[1720549569621,0.1041287,3070.6,3070.5,6.51348]
[1720549570088,0.1041287,3070.6,3070.4,3.2569]
[1720549570627,0.1041287,3070.6,3070.5,3.25679]
[1720549571516,0.1041287,3070.6,3070.5,6.51358]
[1720549571727,0.1041287,3070.6,3070.5,10.701428]
[1720549572349,1.12780126,3071.3,3070.5,4.187818]
[1720549572656,4.66560514,3071.5,3070.5,4.187818]
[1720549572657,4.66560514,3071.5,3071.4,6.51168]
[1720549573139,4.76973384,3071.5,3071.4,6.51168]
[1720549573749,4.76973384,3071.5,3071.4,3.25584]
[1720549573902,0.1041287,3071.3,3071.2,3.25597]
[1720549574682,0.1041287,3071.3,3071.0,2.797]
[1720549574683,1.52527165,3071.3,3071.0,3.25619]
[1720549574982,1.02367256,3071.3,3071.1,3.25614]
[1720549576474,1.02367256,3071.3,3071.2,3.25605]
[1720549576788,0.1041287,3071.3,3071.2,6.5121]
[1720549576971,1.02367256,3071.4,3071.3,3.25595]
[1720549577578,0.1041287,3071.2,3071.1,3.25607]
[1720549577767,2.25563125,3071.2,3071.1,3.25607]
[1720549577988,0.1041287,3071.0,3070.9,3.25637]
[1720549578147,1.23207025,3071.0,3070.9,3.25637]
[1720549578584,2.65337518,3071.0,3070.9,3.25637]
[1720549578898,0.1041287,3071.0,3070.9,6.51274]
[1720549579042,1.02367256,3071.4,3071.0,2.379]
[1720549579241,1.36489675,3071.5,3071.4,6.51168]
[1720549579242,1.02367256,3071.5,3071.4,6.51168]
[1720549579448,3.6766164,3071.5,3071.4,6.51168]
[1720549579884,0.1041287,3071.3,3071.1,3.25614]
[1720549580188,0.1041287,3070.9,3070.8,6.05339]
[1720549580499,0.1041287,3070.9,3070.8,3.25639]
[1720549580845,0.1041287,3070.9,3070.8,6.51287]
[1720549581072,0.1041287,3070.9,3070.8,9.961157]
[1720549581258,0.1041287,3070.9,3070.8,12.358257]
[1720549581685,0.1041287,3070.9,3070.8,15.614737]
[1720549582501,0.1041287,3071.3,3071.2,6.5121]
[1720549582700,0.1041287,3071.3,3071.2,12.56515]
[1720549586008,0.1041287,3071.3,3071.2,9.3091]
[1720549586713,0.1041287,3071.3,3071.2,2.797]
[1720549586928,0.1041287,3071.3,3071.1,3.25616]
[1720549587129,0.1041287,3071.3,3071.1,3.2561]
[1720549587428,0.1041287,3071.3,3071.2,3.25605]
[1720549587815,0.1041287,3071.3,3071.1,3.2561]
[1720549588131,0.1041287,3071.0,3070.9,3.25626]
[1720549590395,0.1041287,3071.0,3070.9,6.51263]
[1720549591424,0.1041287,3071.0,3070.9,3.25626]
[1720549592935,1.5253154,3071.0,3070.9,3.25626]
[1720549593428,2.65328886,3071.0,3070.9,3.25626]
[1720549593636,2.55050491,3071.0,3070.9,3.25626]
[1720549593831,2.55050491,3071.0,3070.7,3.25651]
[1720549593832,0.1041287,3070.8,3070.7,3.25651]
[1720549594127,1.1294382,3070.8,3070.7,3.25651]
[1720549594316,2.5506249,3070.8,3070.7,3.25651]
[1720549594717,0.1041287,3070.8,3070.7,6.51309]
[1720549594910,2.55073492,3070.8,3070.7,6.51309]
[1720549595110,1.12945359,3070.8,3070.7,6.51309]
[1720549595637,1.52541075,3070.8,3070.7,6.51309]
[1720549595815,1.52540264,3070.8,3070.7,6.51309]
[1720549596129,2.55072753,3070.8,3070.5,6.51343]
[1720549596347,0.1041287,3070.6,3070.5,3.2567]
[1720549596549,1.52548111,3070.6,3070.5,3.2567]
[1720549596705,2.550806,3070.6,3070.5,3.2567]
[1720549597212,2.550806,3070.6,3070.4,9.31064]
[1720549597410,1.12945359,3070.6,3070.5,3.25679]
[1720549597722,2.55087712,3070.6,3070.5,3.25679]
[1720549597925,1.12945359,3070.6,3070.5,3.25679]
[1720549598105,2.55080832,3070.6,3070.5,3.25679]
[1720549598718,1.52556771,3070.6,3070.5,3.25679]
[1720549600503,2.55080832,3070.6,3070.5,3.25679]
[1720549600813,0.1041287,3070.6,3070.5,3.25679]
[1720549601927,0.1041287,3070.7,3070.6,3.25665]
[1720549602129,1.02524061,3070.8,3070.6,3.25665]
[1720549602331,1.02524061,3070.9,3070.8,6.51296]
[1720549602644,4.66560514,3071.0,3070.9,12.56611]
[1720549602942,4.76973384,3071.0,3070.9,12.56611]
[1720549603143,4.76973384,3071.0,3070.9,9.30974]
[1720549603625,0.1041287,3071.0,3070.9,9.30974]
[1720549604452,0.1041287,3071.0,3070.9,6.51274]
[1720549608719,0.1041287,3071.0,3070.9,9.76911]
[1720549611570,0.1041287,3071.3,3071.2,9.76815]
[1720549611730,0.1041287,3071.3,3071.2,12.56515]
[1720549612156,0.1041287,3071.3,3071.2,9.3091]
[1720549613964,1.52516173,3071.3,3071.2,9.3091]
[1720549614275,2.54984645,3071.3,3071.2,9.3091]
[1720549614479,2.54984645,3071.3,3071.2,6.05305]
[1720549614480,2.54989184,3071.3,3071.2,6.05305]
[1720549614648,2.54989184,3071.3,3071.2,9.3091]
[1720549614986,0.1041287,3071.3,3071.2,9.3091]
[1720549616184,4.66560514,3071.5,3071.4,15.50096]
[1720549621089,4.66560514,3071.5,3071.4,18.7568]
[1720549621295,12.2,3071.8,3071.7,12.24506]
[1720549621470,1.36618439,3072.1,3072.0,9.7656]
[1720549621673,1.47031309,3072.1,3072.0,9.7656]
[1720549622659,1.36618439,3072.1,3072.0,16.0208]
[1720549622865,1.36618439,3072.1,3072.0,17.948422]
[1720549624003,0.1041287,3072.3,3072.2,9.76497]
[1720549624187,0.1041287,3072.3,3072.2,12.76497]
[1720549624416,0.1041287,3072.7,3072.4,9.76434]
[1720549624732,0.1041287,3072.7,3072.6,9.76371]
[1720549625095,0.1041287,3072.9,3072.8,9.76308]
[1720549625720,0.1041287,3073.1,3073.0,9.76242]
[1720549626235,0.1041287,3073.1,3073.0,6.50828]
[1720549633093,0.1041287,3072.9,3072.8,3.25429]
[1720549633422,0.1041287,3072.9,3072.8,3.25436]
[1720549634447,0.1041287,3072.3,3072.2,2.797]
[1720549634744,0.1041287,3072.3,3072.2,6.05199]
[1720549635315,0.1041287,3072.3,3072.2,9.30698]
[1720549636346,0.1041287,3072.3,3072.2,12.56197]
[1720549636522,0.1041287,3072.3,3072.2,14.143683]
[1720549637349,0.1041287,3072.3,3072.2,12.56197]
[1720549639156,0.1041287,3072.5,3072.4,6.50956]
[1720549639448,0.1041287,3072.5,3072.4,9.76434]
[1720549639745,0.1041287,3072.5,3072.4,10.52917952]
[1720549642767,0.1041287,3072.5,3072.4,6.50956]
[1720549644624,0.1041287,3072.5,3072.4,9.76434]
[1720549647157,0.1041287,3072.5,3072.4,6.50956]
[1720549649238,1.23151535,3072.5,3072.3,6.05182]
[1720549649444,1.12738665,3072.4,3072.3,3.25482]
[1720549649753,0.1041287,3072.3,3072.2,3.25499]
[1720549649956,1.1274625,3072.3,3072.2,3.25499]
[1720549650327,0.1041287,3072.2,3072.1,3.25509]
[1720549650662,1.12753361,3072.2,3072.1,3.25509]
[1720549651327,1.12753361,3072.2,3072.0,3.25514]
[1720549651328,1.23166231,3072.2,3072.0,3.25514]
[1720549651528,0.1041287,3072.2,3072.0,3.25514]
[1720549651756,0.1041287,3072.2,3072.1,3.2551]
[1720549652457,1.23164425,3072.2,3072.1,3.2551]
[1720549653157,1.23164425,3072.2,3072.1,6.5102]
[1720549653158,0.1041287,3072.2,3072.1,6.5102]
[1720549653463,0.1041287,3072.2,3072.1,7.44092]
[1720549654673,0.1041287,3072.2,3072.1,6.5102]
[1720549656273,7.5641287,3072.8,3072.6,3.25453]
[1720549656653,7.5641287,3072.8,3072.4,6.50944]
[1720549656654,1.12737657,3072.7,3072.4,6.50944]
[1720549656853,0.1041287,3072.5,3072.4,3.25471]
[1720549657152,1.23150527,3072.5,3072.4,3.25471]
[1720549659170,2.6520853,3072.5,3072.4,3.25471]
[1720549659875,2.65215675,3072.5,3072.4,3.25471]
[1720549660072,0.1041287,3072.5,3072.4,3.25471]
[1720549660380,1.12697192,3072.5,3072.4,3.25471]
[1720549660588,3.67497618,3072.5,3072.4,3.25471]
[1720549661079,3.6754583,3072.5,3072.4,3.25471]
[1720549661386,0.1041287,3072.2,3072.1,3.255]
[1720549661593,3.6759461,3072.2,3072.1,3.255]
[1720549661797,3.6759461,3072.2,3071.9,2.797]
[1720549661798,1.52469745,3072.2,3071.9,2.797]
[1720549662034,0.1041287,3072.0,3071.8,3.25535]
[1720549662314,3.57226221,3071.9,3071.8,3.25535]
[1720549663107,1.02381314,3071.9,3071.8,3.25535]
[1720549663316,3.57232613,3071.9,3071.8,3.25535]
[1720549663468,2.54851299,3071.9,3071.7,3.25552]
[1720549663672,2.65268486,3071.8,3071.7,3.25552]
[1720549664418,1.23180526,3071.8,3071.7,3.25552]
[1720549664718,0.1041287,3071.8,3071.7,3.25552]
[1720549664915,0.1041287,3071.8,3071.1,2.797]
[1720549664916,0.1041287,3071.5,3071.4,3.25576]
[1720549665219,0.1041287,3071.5,3071.4,6.5116]
[1720549665812,0.1041287,3071.5,3071.4,3.25576]
[1720549666126,0.1041287,3071.5,3071.4,6.5116]
[1720549666609,0.1041287,3071.5,3071.4,3.25576]
[1720549667909,1.02381314,3071.6,3071.2,3.25598]
[1720549668245,0.1041287,3071.3,3071.2,3.25598]
[1720549669597,0.1041287,3071.3,3071.2,6.51203]
[1720549671374,0.1041287,3071.3,3071.2,3.25598]
[1720549672284,0.1041287,3071.3,3071.1,3.25615]
[1720549673229,0.1041287,3071.0,3070.7,3.25656]
[1720549673509,1.36274576,3071.6,3070.7,6.51314]
[1720549673510,0.1041287,3070.8,3070.7,6.51314]
[1720549674703,0.1041287,3070.8,3070.7,3.25656]
[1720549675005,0.1041287,3070.8,3070.7,6.51314]
[1720549675506,0.1041287,3070.8,3070.7,7.164454]
[1720549675709,1.02205932,3071.5,3071.1,3.25607]
[1720549675710,0.1041287,3071.3,3071.1,3.25607]
[1720549676288,0.1041287,3071.3,3071.1,6.51217]
[1720549677275,0.1041287,3071.3,3071.2,6.5121]
[1720549677514,0.1041287,3071.3,3071.2,10.41936]
[1720549677700,7.5641287,3071.8,3071.7,6.51104]
[1720549678087,7.5641287,3071.8,3071.7,3.25552]
[1720549678501,0.1041287,3071.6,3071.5,3.25566]
[1720549679552,7.46,3071.8,3071.3,3.25591]
[1720549679553,0.1041287,3071.4,3071.3,3.25586]
[1720549679878,0.1041287,3071.4,3070.8,2.3103]
[1720549680124,0.1041287,3071.0,3070.7,2.797]
[1720549680286,0.1041287,3071.0,3070.9,3.25637]
[1720549680484,0.1041287,3071.0,3070.9,6.51274]
[1720549682420,0.1041287,3071.0,3070.9,3.25637]
[1720549683200,0.1041287,3070.8,3070.7,6.0535]
[1720549683409,0.1041287,3070.8,3070.7,3.2565]
[1720549686128,0.1041287,3070.8,3070.0,2.4035]
[1720549686129,0.1041287,3070.0,3069.9,9.31186]
[1720549687060,0.1041287,3070.3,3070.2,3.25711]
[1720549687597,0.1041287,3070.3,3070.2,6.51422]
[1720549688329,0.1041287,3070.3,3070.2,3.25711]
[1720549688914,0.1041287,3070.3,3069.9,6.05439]
[1720549689135,0.1041287,3070.0,3069.9,6.05439]
[1720549689632,0.1041287,3070.4,3070.3,3.25701]
[1720549690605,0.1041287,3070.4,3070.3,6.51402]
[1720549691012,0.1041287,3070.4,3070.3,3.25701]
[1720549691217,0.1041287,3070.4,3070.3,6.51402]
[1720549691417,0.1041287,3070.6,3070.4,3.25683]
[1720549691616,0.1041287,3070.6,3070.5,3.25679]
[1720549692817,19.66,3070.8,3070.3,3.25701]
[1720549692818,0.1041287,3070.4,3070.3,3.25701]
[1720549693635,0.1041287,3070.1,3070.0,3.25732]
[1720549694028,7.46,3070.8,3069.7,5.0997]
[1720549694029,0.1041287,3069.8,3069.7,6.05455]
[1720549694227,0.1041287,3069.8,3069.7,3.25755]
[1720549694573,0.1041287,3069.5,3069.4,3.25787]
[1720549694730,0.1041287,3069.3,3069.1,3.25819]
[1720549694924,0.1041287,3069.0,3068.9,5.62613]
[1720549695245,0.1041287,3069.0,3068.9,8.88462]
[1720549696115,7.46,3069.8,3069.2,3.2581]
[1720549696316,7.46,3069.8,3069.4,3.25796]
[1720549696517,7.46,3069.8,3069.5,3.25783]
[1720549696837,0.1041287,3069.7,3069.6,3.25768]
[1720549697016,7.46,3069.8,3069.6,3.25768]
[1720549697219,7.46,3069.8,3069.7,6.51528]
[1720549698968,0.1041287,3069.9,3069.8,6.51508]
[1720549699659,0.1041287,3069.6,3069.5,3.25785]
[1720549699861,0.1041287,3069.4,3069.3,3.25799]
[1720549700242,0.1041287,3069.6,3069.2,2.797]
[1720549700447,0.1041287,3069.6,3069.5,6.5157]
[1720549701162,0.1041287,3069.6,3069.5,3.25785]
[1720549701883,0.1041287,3069.6,3069.5,6.5157]
[1720549702067,0.1041287,3069.8,3069.7,3.25764]
[1720549702447,0.1041287,3069.8,3069.7,6.51528]
[1720549702750,0.1041287,3069.8,3069.7,8.77878]
[1720549703832,0.1041287,3069.8,3069.7,6.51528]
[1720549704036,0.1041287,3069.8,3068.2,7.91767361]
[1720549704037,0.1041287,3069.2,3069.1,6.25828]
[1720549704257,0.1041287,3069.2,3069.1,9.05528]
[1720549704461,0.1041287,3069.2,3069.1,12.31356]
[1720549704656,0.1041287,3069.2,3069.1,14.096642]
[1720549705040,0.1041287,3069.2,3069.1,11.096642]
[1720549705746,7.46,3069.7,3069.1,11.096642]
[1720549705747,0.1041287,3069.6,3069.5,3.25785]
[1720549706368,0.1041287,3069.2,3069.1,6.05528]
[1720549708040,0.1041287,3069.2,3069.1,2.797]
[1720549708248,0.1041287,3068.9,3068.8,3.25858]
[1720549708468,4.3936,3069.6,3068.6,3.25874]
[1720549708469,0.1041287,3068.7,3068.6,3.25874]
[1720549709179,0.1041287,3068.7,3068.5,3.25891]
[1720549709335,7.46,3069.4,3068.3,3.25904]
[1720549709336,0.1041287,3068.4,3068.3,3.25904]
[1720549709850,0.1041287,3068.3,3068.2,3.25914]
[1720549710246,7.46,3068.9,3068.2,3.25914]
[1720549710447,0.55,3068.8,3068.3,3.25912]
[1720549710848,0.1041287,3068.4,3068.1,6.1690316]
[1720549711179,0.1041287,3068.2,3068.1,3.3720316]
[1720549711373,0.1041287,3068.2,3068.1,0.1127116]
[1720549711557,0.1041287,3068.2,3068.1,3.3720516]
[1720549712130,0.1041287,3068.2,3068.1,0.1127116]
[1720549712946,0.6541287,3068.2,3068.1,0.1127116]
[1720549713170,0.1041287,3068.2,3068.1,0.1127116]
[1720549713676,0.55,3068.2,3068.1,0.1127116]
[1720549713903,0.6541287,3068.2,3068.1,0.1127116]
[1720549714379,0.1041287,3068.5,3068.4,3.25902]
[1720549714542,7.46,3068.7,3068.4,3.25902]
[1720549714873,0.1041287,3068.6,3068.5,3.2589]
[1720549715073,7.46,3068.7,3068.5,3.2589]
[1720549715074,7.46,3068.7,3068.6,3.25881]
[1720549716170,0.1041287,3068.5,3068.4,3.25892]
[1720549716501,0.1041287,3068.3,3068.1,0.1127116]
[1720549716644,0.1041287,3068.3,3068.2,3.25923]
[1720549717250,0.1041287,3068.3,3068.1,0.1127116]
[1720549717760,0.1041287,3068.3,3068.1,3.3720016]
[1720549719276,0.1041287,3068.3,3068.1,0.1127116]
[1720549722582,0.55,3068.2,3068.1,0.1127116]
[1720549723150,0.91541287,3068.2,3068.1,0.1127116]
[1720549723567,2.04463375,3068.2,3068.1,0.1127116]
[1720549724097,0.91541287,3068.2,3068.1,0.1127116]
[1720549724254,7.25986814,3068.2,3068.1,0.1127116]
[1720549725386,0.91541287,3068.2,3068.1,0.1127116]
[1720549727494,0.55,3068.2,3068.1,0.1127116]
[1720549727989,4.9384709,3068.2,3068.1,0.1127116]
[1720549728156,5.76523,3068.2,3068.1,0.1127116]
[1720549728356,6.89450731,3068.2,3068.1,0.1127116]
[1720549728650,9.99863601,3068.2,3068.1,0.1127116]
[1720549729468,13.25786601,3068.2,3068.1,0.1127116]
[1720549729653,16.69786601,3068.2,3068.1,0.1127116]
[1720549730560,16.69800254,3068.2,3068.1,0.1127116]
[1720549730767,16.69799749,3068.2,3068.1,0.1127116]
[1720549732074,16.59386879,3068.2,3068.1,0.1127116]
[1720549732263,9.99876749,3068.2,3068.1,0.1127116]
[1720549733754,8.8693587,3068.2,3068.1,0.1127116]
[1720549733981,9.99868266,3068.2,3068.1,0.1127116]
[1720549735094,16.69791266,3068.2,3068.1,0.1127116]
[1720549735592,13.43868266,3068.2,3068.1,0.1127116]
[1720549735798,9.99868266,3068.2,3068.1,0.1127116]
[1720549736092,13.25791266,3068.2,3068.1,0.1127116]
[1720549736899,9.99868266,3068.2,3068.1,0.1127116]
[1720549737098,13.25791266,3068.2,3068.1,0.1127116]
[1720549737264,13.25794558,3068.2,3068.1,0.1127116]
[1720549737696,18.19795235,3068.2,3068.1,0.1127116]
[1720549737992,18.12101583,3068.2,3068.1,0.1127116]
[1720549738374,18.12111968,3068.2,3068.1,0.1127116]
[1720549739398,18.12105582,3068.2,3068.1,0.1127116]
[1720549739598,9.99879719,3068.2,3068.1,0.1127116]
[1720549740380,11.42176084,3068.2,3068.1,0.1127116]
[1720549740578,6.73946747,3068.2,3068.1,0.1127116]
[1720549741191,11.4216535,3068.2,3068.1,0.1127116]
[1720549741688,9.89456877,3068.2,3068.1,0.1127116]
[1720549741897,11.31753393,3068.2,3068.1,0.1127116]
[1720549742404,8.8693587,3068.2,3068.1,0.1127116]
[1720549742583,11.31752995,3068.2,3068.1,0.1127116]
[1720549742905,9.89456456,3068.2,3068.1,0.1127116]
[1720549743124,8.8693587,3068.2,3068.1,0.1127116]
[1720549743285,1.2334615,3068.2,3068.1,0.1127116]
[1720549746329,0.1041287,3068.2,3068.1,0.1127116]
[1720549746521,1.23331566,3068.2,3068.1,0.1127116]
[1720549746815,1.23333743,3068.2,3068.1,0.1127116]
[1720549748784,2.65614029,3068.2,3068.1,0.1127116]
[1720549748989,1.23333743,3068.2,3068.1,0.1127116]
[1720549749434,2.6561402,3068.2,3068.1,0.1127116]
[1720549749589,0.1041287,3068.2,3068.1,0.1127116]
[1720549749790,2.65610755,3068.2,3068.1,0.1127116]
[1720549750292,2.65605461,3068.2,3068.1,0.1127116]
[1720549751046,1.23332288,3068.2,3068.1,5.8562516]
[1720549751222,1.23332288,3068.2,3068.1,6.19346176]
[1720549752305,1.23332288,3068.2,3068.1,5.8562516]
[1720549752501,2.65593131,3068.2,3068.1,2.5969116]
[1720549752864,2.65593131,3068.2,3068.1,0.1127116]
[1720549753005,4.57135864,3068.2,3068.1,0.1127116]
[1720549753396,4.91269265,3068.2,3068.1,0.1127116]
[1720549753641,6.61320032,3068.2,3068.1,0.1127116]
[1720549754531,10.12676026,3068.2,3068.1,0.1127116]
[1720549754838,27.28599026,3068.2,3068.1,0.1127116]
[1720549756300,27.28658413,3068.2,3068.1,0.1127116]
[1720549756846,27.28654324,3068.2,3068.1,0.1127116]
[1720549757948,17.32808324,3068.2,3068.1,0.1127116]
[1720549758803,16.77808324,3068.2,3068.1,0.1127116]
[1720549759025,18.82893933,3068.2,3068.1,0.1127116]
[1720549759228,16.77808324,3068.2,3068.1,0.1127116]
[1720549759444,12.5251287,3068.2,3068.1,0.1127116]
[1720549759618,18.82851247,3068.2,3068.1,0.1127116]
[1720549759940,16.77770657,3068.2,3068.1,0.1127116]
[1720549760102,20.03693657,3068.2,3068.1,0.1127116]
[1720549760840,22.42954345,3068.2,3068.1,0.1127116]
[1720549761035,20.58693657,3068.2,3068.1,0.1127116]
[1720549761203,17.32770657,3068.2,3068.1,0.1127116]
[1720549762802,16.19850084,3068.2,3068.1,0.1127116]
[1720549763008,17.32775082,3068.2,3068.1,0.1127116]
[1720549766091,22.98151852,3068.2,3068.1,0.1127116]
[1720549766262,22.98280484,3068.2,3068.1,0.1127116]
[1720549766584,18.73033356,3068.2,3068.1,0.1127116]
[1720549766734,20.58720286,3068.2,3068.1,0.1127116]
[1720549767122,0.1041287,3067.5,3067.0,3.26051]
[1720549767340,1.47338851,3067.1,3067.0,5.53991]
[1720549767625,4.02563603,3067.1,3067.0,5.53991]
[1720549768043,2.65637622,3067.1,3067.0,5.53991]
[1720549768374,2.65637622,3067.1,3067.0,2.2794]
[1720549768552,4.02577946,3067.1,3067.0,2.2794]
[1720549768754,2.65637622,3067.1,3067.0,2.2794]
[1720549769465,4.02606015,3067.1,3067.0,2.2794]
[1720549771277,0.1041287,3066.6,3066.4,2.797]
[1720549771484,3.92193145,3067.1,3065.6,3.81592215]
[1720549771485,0.1041287,3066.4,3066.3,2.2701]
[1720549771630,1.52722401,3066.4,3066.3,2.2701]
[1720549771957,2.65666473,3066.4,3066.3,2.2701]
[1720549772120,4.36850577,3066.4,3066.3,2.2701]
[1720549772952,4.36850577,3066.4,3066.3,5.53135]
[1720549772953,2.65718483,3066.4,3066.3,5.53135]
[1720549773151,3.68379234,3066.4,3066.3,5.53135]
[1720549773353,3.68345896,3066.4,3066.3,5.53135]
[1720549773557,2.55378932,3066.4,3066.3,5.53135]
[1720549773768,2.55378932,3066.4,3066.3,6.410623]
[1720549773934,0.1041287,3066.4,3066.3,9.671873]
[1720549775961,1.71101722,3066.9,3066.7,5.53093]
[1720549775962,1.02627413,3066.9,3066.7,5.53093]
[1720549776160,1.02627413,3066.9,3066.8,0.553093]
[1720549776380,2.44944487,3066.9,3066.7,5.53093]
[1720549776678,1.52729624,3066.8,3066.7,8.79176]
[1720549776982,1.52729624,3066.8,3066.7,9.670936]
[1720549777484,1.02627413,3067.1,3067.0,3.26051]
[1720549777789,8.59040283,3067.2,3067.1,3.2604]
[1720549778079,3.68195082,3067.2,3067.1,3.2604]
[1720549778374,2.65650383,3067.2,3067.1,3.2604]
[1720549778578,0.1041287,3067.0,3066.9,3.26052]
[1720549778871,2.55257665,3067.0,3066.9,3.26052]
[1720549779067,2.55272582,3067.0,3066.9,3.26052]
[1720549779236,2.55272582,3067.0,3066.8,2.2701]
[1720549779237,3.68221116,3067.0,3066.8,2.2701]
[1720549779561,3.68221116,3067.0,3066.6,3.26087]
[1720549779562,0.1041287,3066.7,3066.6,3.26087]
[1720549781764,1.52739769,3066.7,3066.6,3.26087]
[1720549781951,2.55290373,3066.7,3066.6,3.26087]
[1720549782151,0.1041287,3066.7,3066.6,3.26087]
[1720549782351,0.1041287,3066.7,3066.6,7.419229]
[1720549782980,0.1041287,3066.7,3066.6,10.216229]
[1720549783488,0.1041287,3066.7,3066.6,9.31881]
[1720549783872,0.1041287,3066.7,3066.6,6.52181]
[1720549784388,1.23370662,3066.7,3066.6,3.26087]
[1720549784688,3.68230376,3066.7,3066.6,3.26087]
[1720549784983,3.68230376,3066.7,3066.5,3.26103]
[1720549784984,3.68220906,3066.7,3066.5,3.26103]
[1720549785156,3.57807968,3066.6,3066.5,3.26103]
[1720549785352,2.55287208,3066.6,3066.5,3.26103]
[1720549785565,1.1293363,3066.7,3066.5,3.26103]
[1720549785773,3.57820064,3066.6,3066.5,3.26103]
[1720549785972,1.0252076,3066.6,3066.5,3.26103]
[1720549786377,3.57820128,3066.6,3066.5,3.26103]
[1720549786576,2.55299368,3066.6,3066.5,3.26103]
[1720549786791,0.1041287,3066.5,3066.4,2.4523]
[1720549787006,3.6821123,3066.5,3066.3,3.26118]
[1720549787162,1.12911593,3066.5,3066.3,3.26118]
[1720549787491,0.1041287,3066.5,3066.3,3.26118]
[1720549787789,0.1041287,3066.5,3066.4,3.26115]
[1720549788010,1.23378713,3066.5,3066.4,3.26115]
[1720549788164,0.1041287,3066.5,3066.4,3.26115]
[1720549789211,0.1041287,3066.2,3066.1,5.7502]
[1720549789411,0.1041287,3066.2,3066.1,9.01167]
[1720549790369,0.1041287,3066.2,3066.1,5.7502]
[1720549790902,0.1041287,3066.2,3066.1,9.01167]
[1720549791073,0.1041287,3066.2,3066.1,5.7502]
[1720549792197,0.1041287,3066.2,3066.1,9.01167]
[1720549792987,0.1041287,3066.2,3066.1,5.7502]
[1720549794272,0.1041287,3066.2,3066.1,9.01167]
[1720549797396,0.1041287,3066.2,3066.1,9.912837]
[1720549797584,0.1041287,3066.2,3066.1,13.174307]
[1720549798115,0.1041287,3066.2,3066.1,9.912837]
[1720549798412,0.1041287,3066.2,3066.1,13.174307]
[1720549798649,0.1041287,3066.2,3066.1,9.912837]
[1720549799197,0.1041287,3066.2,3066.1,9.01167]
[1720549800417,1.23382621,3066.2,3066.1,9.01167]
[1720549800624,0.1041287,3066.2,3066.1,9.01167]
[1720549801000,0.1041287,3066.4,3066.3,6.5225]
[1720549801197,1.23379239,3066.4,3066.3,6.5225]
[1720549802524,1.23379239,3066.4,3066.3,8.029463]
[1720549802821,0.1041287,3066.4,3066.3,8.029463]
[1720549803344,7.5641287,3066.7,3066.6,6.52188]
[1720549803490,1.23364065,3066.7,3066.6,15.836368]
[1720549803696,8.58907887,3067.2,3067.1,3.2604]
[1720549803929,2.65657438,3067.2,3067.1,3.2604]
[1720549804298,1.23352944,3067.2,3067.1,3.2604]
[1720549804500,1.23350088,3067.2,3067.1,6.5208]
[1720549804935,3.68139193,3067.2,3067.1,6.5208]
[1720549806435,2.65653099,3067.2,3067.1,6.5208]
[1720549807508,3.68139193,3067.2,3067.1,3.2604]
[1720549807822,2.65658711,3067.2,3067.1,3.2604]
[1720549808332,0.1041287,3066.9,3066.8,3.26068]
[1720549808534,0.1041287,3066.9,3066.6,3.26084]
[1720549808535,0.1041287,3066.7,3066.6,3.26084]
[1720549808835,1.52733162,3066.7,3066.6,3.26084]
[1720549809032,3.68221708,3066.7,3066.6,3.26084]
[1720549809240,3.68221708,3066.7,3066.5,3.26099]
[1720549809241,4.02396039,3066.7,3066.5,3.26099]
[1720549809436,2.55260966,3066.6,3066.5,3.26099]
[1720549809623,2.55260966,3066.6,3066.3,5.75388]
[1720549809624,0.1041287,3066.4,3066.3,3.26115]
[1720549809834,3.6826503,3066.4,3066.3,6.5224]
[1720549810001,2.65690749,3066.4,3066.3,6.5224]
[1720549810206,0.1041287,3066.4,3066.3,6.5224]
[1720549810539,0.1041287,3066.4,3066.3,10.265784]
[1720549811034,0.1041287,3066.4,3066.3,9.0077]
[1720549811210,2.25949852,3066.4,3066.3,9.0077]
[1720549811405,3.68280159,3066.4,3066.3,5.74645]
[1720549812240,3.68280159,3066.4,3066.3,9.0077]
[1720549812534,3.68280159,3066.4,3066.3,5.74645]
[1720549813107,3.68280159,3066.4,3066.3,9.0077]
[1720549813746,1.52743177,3066.4,3066.3,9.0077]
[1720549813956,1.52743177,3066.4,3066.3,3.26115]
[1720549814118,2.65714613,3066.4,3066.3,3.26115]
[1720549814317,4.02592829,3066.4,3066.3,3.26115]